bitfinex/quotes_ETHUSD_20241003
["timestamp","ask_amount","ask_price","bid_price","bid_amount"]
[1727968109033,4.3061,2322.3,2321.8,7.30686]
[1727968109234,4.73687,2322.2,2321.8,4.30686]
[1727968109479,0.43061,2322.2,2321.7,0.7672]
[1727968109689,0.43061,2322.2,2320.1,10.85459998]
[1727968109690,4.30663,2322.0,2321.5,4.30747]
[1727968109847,4.30654,2322.1,2321.5,8.61486]
[1727968110039,4.30654,2322.1,2321.5,4.30742]
[1727968110040,4.30678,2322.0,2321.5,4.30742]
[1727968110282,4.30702,2321.8,2321.3,4.30779]
[1727968110850,4.30674,2322.0,2321.5,4.30755]
[1727968111066,9.044194,2322.0,2321.5,4.30755]
[1727968111353,9.044194,2322.0,2321.5,4.30745]
[1727968111354,4.737394,2322.0,2321.5,4.30745]
[1727968111538,4.30701,2321.8,2321.4,4.30773]
[1727968111738,4.30701,2321.8,2321.3,7.30791]
[1727968111960,4.30701,2321.8,2321.5,4.30754]
[1727968111961,0.9044404,2321.8,2321.5,4.30754]
[1727968112169,0.9044404,2321.8,2321.5,4.30747]
[1727968112349,0.9044404,2321.8,2321.5,8.61494]
[1727968112559,4.30666,2322.0,2321.5,4.30747]
[1727968112904,4.30689,2321.9,2321.4,4.30764]
[1727968113185,5.12796,2322.3,2321.7,4.30716]
[1727968113358,0.8218,2322.3,2321.9,4.30669]
[1727968113560,0.38218,2322.2,2321.9,4.30669]
[1727968113764,0.8173,2322.6,2322.1,4.30637]
[1727968113982,0.8173,2322.6,2322.1,4.30634]
[1727968114377,4.30515,2322.8,2322.3,4.30598]
[1727968114600,5.10531,2322.9,2322.4,4.30579]
[1727968114897,4.30433,2323.3,2322.8,4.30499]
[1727968115060,4.30433,2323.3,2322.5,4.30556]
[1727968115061,0.430431,2323.3,2322.5,4.30556]
[1727968115254,4.30501,2322.9,2322.5,4.30556]
[1727968115482,4.30501,2322.9,2322.4,5.11648]
[1727968115705,4.30487,2323.0,2322.5,4.30554]
[1727968116255,4.30414,2323.4,2322.8,4.30514]
[1727968116456,0.8002,2323.6,2323.1,4.30448]
[1727968116715,4.30338,2323.8,2323.3,4.30421]
[1727968116990,0.512138,2323.7,2323.0,0.7954]
[1727968117193,0.512138,2323.7,2322.7,4.30519]
[1727968117194,4.30425,2323.3,2322.7,4.30519]
[1727968117399,4.30465,2323.1,2322.7,4.30519]
[1727968117559,4.3048,2323.0,2322.6,4.30551]
[1727968117902,4.3048,2323.0,2322.5,11.61117]
[1727968118057,0.860945,2323.0,2322.6,4.30549]
[1727968118259,5.12223,2323.3,2322.7,4.30532]
[1727968118460,5.12223,2323.3,2322.5,4.30552]
[1727968118461,4.30469,2323.1,2322.5,4.30552]
[1727968118786,4.30486,2323.0,2322.6,4.30546]
[1727968118983,4.30461,2323.1,2322.6,4.30546]
[1727968119208,5.11267,2323.6,2322.4,0.55]
[1727968119506,0.8089,2323.6,2322.7,4.30522]
[1727968119717,0.512138,2323.7,2323.5,4.30369]
[1727968119851,5.06984,2324.0,2323.5,8.60744]
[1727968120059,5.06984,2324.0,2323.5,4.30369]
[1727968120468,0.506984,2323.9,2323.5,5.10299]
[1727968120705,4.30268,2324.2,2323.5,5.10299]
[1727968120706,4.3024,2324.3,2323.8,4.30312]
[1727968120870,0.7726,2324.6,2323.6,0.55]
[1727968121072,4.30266,2324.2,2323.7,4.30336]
[1727968121273,5.07444,2324.6,2323.8,4.30313]
[1727968121274,4.30232,2324.4,2323.8,4.30313]
[1727968121460,5.07455,2324.6,2323.7,4.30347]
[1727968121461,4.30265,2324.2,2323.7,4.30347]
[1727968121655,4.30265,2324.2,2323.6,4.30352]
[1727968121656,0.430232,2324.3,2323.8,4.30328]
[1727968121859,0.430232,2324.3,2323.6,4.30354]
[1727968122119,4.30265,2324.2,2323.7,4.30346]
[1727968122302,8.60469,2324.4,2323.8,4.30316]
[1727968122502,4.30234,2324.4,2323.9,4.30293]
[1727968122727,5.239964,2324.4,2323.9,4.30293]
[1727968123243,4.29942,2325.9,2323.6,4.85363]
[1727968123378,4.5016,2326.2,2324.7,0.8182]
[1727968123379,0.7932,2325.3,2324.7,0.8182]
[1727968123738,3.06654776,2326.8,2324.7,0.8182]
[1727968123739,0.7932,2325.6,2324.7,5.11967]
[1727968123873,4.30026,2325.5,2324.7,5.11967]
[1727968124079,4.30026,2325.5,2324.8,4.30133]
[1727968124309,0.7932,2325.6,2324.8,4.30133]
[1727968124530,4.30043,2325.4,2324.7,0.8182]
[1727968124819,0.7932,2325.6,2324.4,4.3021]
[1727968124820,4.30093,2325.1,2324.4,4.3021]
[1727968125022,0.430093,2325.0,2324.4,4.3021]
[1727968125230,5.05906,2324.9,2324.3,0.8156]
[1727968125376,5.05906,2324.9,2324.2,4.30251]
[1727968125377,5.05906,2324.9,2324.1,4.30263]
[1727968125580,0.7578,2324.9,2324.2,4.30254]
[1727968125790,5.05907,2324.9,2324.2,4.30254]
[1727968126142,5.05907,2324.9,2324.2,4.30243]
[1727968126143,0.5489163,2324.8,2324.2,4.30243]
[1727968126295,0.5489163,2324.8,2324.0,0.7928]
[1727968126296,4.8503663,2324.8,2324.0,5.09559]
[1727968126494,4.8503663,2324.8,2324.1,4.3026]
[1727968126717,4.8503763,2324.8,2324.1,4.3026]
[1727968126915,4.30182,2324.6,2324.0,0.7928]
[1727968127134,0.430182,2324.5,2324.0,5.09561]
[1727968127333,0.430182,2324.5,2323.8,3.0]
[1727968127543,0.430182,2324.5,2323.9,4.3031]
[1727968127699,4.732292,2324.5,2323.9,4.3031]
[1727968127903,0.430182,2324.5,2324.0,4.3029]
[1727968128327,0.430182,2324.5,2323.9,4.3031]
[1727968128328,0.4732002,2324.4,2323.9,4.3031]
[1727968128491,0.4732002,2324.4,2323.9,4.30298]
[1727968129030,4.30182,2324.6,2324.0,4.3028]
[1727968129197,4.30182,2324.6,2323.9,8.60599]
[1727968129393,4.30215,2324.5,2323.8,7.30319]
[1727968129641,4.30182,2324.6,2323.9,4.30301]
[1727968129949,4.30182,2324.6,2323.8,7.30319]
[1727968129950,4.30223,2324.4,2323.8,4.30317]
[1727968130110,4.30204,2324.5,2323.8,8.60637]
[1727968130310,4.30204,2324.5,2323.9,4.30305]
[1727968130651,3.0,2324.6,2324.0,4.30292]
[1727968130817,0.7578,2324.9,2324.4,4.30208]
[1727968131150,0.7578,2324.9,2324.6,4.30178]
[1727968131151,1.263716,2324.9,2324.6,4.30178]
[1727968131299,0.8084,2325.2,2324.4,4.30204]
[1727968131499,4.30126,2324.9,2324.3,4.30236]
[1727968131734,4.30153,2324.8,2324.2,8.60488]
[1727968131904,0.860279,2324.7,2324.2,4.30243]
[1727968132099,0.860279,2324.7,2324.0,4.30279]
[1727968132100,4.30198,2324.6,2324.0,8.60558]
[1727968132431,4.30198,2324.6,2324.1,4.30272]
[1727968132432,4.30182,2324.6,2324.1,4.30272]
[1727968132839,4.30201,2324.5,2323.9,0.7984]
[1727968133045,4.8952599,2324.5,2324.0,4.30291]
[1727968133202,0.5932499,2324.5,2324.0,4.3028]
[1727968133402,0.5932499,2324.5,2324.0,8.60562]
[1727968133607,0.5932499,2324.5,2324.0,4.3028]
[1727968133817,0.48950699,2324.4,2324.0,4.3028]
[1727968134110,0.48950699,2324.4,2323.9,0.7984]
[1727968134111,0.7704,2324.7,2324.3,4.30235]
[1727968135006,4.30183,2324.6,2324.1,4.30261]
[1727968135458,5.07203,2324.7,2323.9,5.1014]
[1727968135602,5.07203,2324.7,2323.9,5.10136]
[1727968135603,4.30208,2324.5,2323.9,5.10136]
[1727968135814,0.430208,2324.4,2323.8,4.30319]
[1727968136022,4.30265,2324.2,2323.6,0.8127]
[1727968136223,0.430208,2324.4,2323.8,4.30311]
[1727968136405,0.430208,2324.4,2323.9,4.30301]
[1727968136634,0.430208,2324.4,2324.0,4.30283]
[1727968136843,4.732508,2324.4,2323.9,4.30301]
[1727968137142,0.9034618,2324.3,2323.9,4.30301]
[1727968137562,5.2058918,2324.3,2323.8,4.30326]
[1727968137858,4.30256,2324.2,2323.7,4.30335]
[1727968138066,0.9034618,2324.3,2323.9,4.30307]
[1727968138261,5.2059418,2324.3,2323.7,4.30338]
[1727968138437,4.30267,2324.2,2323.7,4.30338]
[1727968138965,4.30248,2324.3,2323.7,4.30338]
[1727968138966,4.30238,2324.3,2323.9,4.30309]
[1727968139366,4.30238,2324.3,2323.8,4.30327]
[1727968139570,0.7704,2324.7,2324.1,4.30272]
[1727968139780,0.7704,2324.7,2324.0,4.30279]
[1727968140058,4.30104,2325.1,2324.0,4.30279]
[1727968140059,0.7972,2325.0,2324.5,4.30184]
[1727968140214,0.7972,2325.0,2324.6,4.30172]
[1727968140556,0.7972,2325.0,2324.4,4.30203]
[1727968140882,5.09842,2325.0,2324.4,4.30203]
[1727968141076,0.7972,2325.0,2324.2,0.8077]
[1727968141364,0.7616,2325.3,2324.9,8.6024]
[1727968141567,0.7674,2325.6,2324.8,0.55]
[1727968141759,4.30077,2325.2,2324.6,4.30171]
[1727968142256,4.30097,2325.1,2324.6,4.30168]
[1727968142459,4.30097,2325.1,2324.4,5.12295]
[1727968142460,4.3012,2325.0,2324.4,5.12295]
[1727968142628,5.0659,2325.0,2324.5,4.30198]
[1727968142835,0.7647,2325.0,2324.7,4.30151]
[1727968143141,1.164991,2325.6,2324.9,0.754]
[1727968143142,6.229651,2325.6,2324.9,0.754]
[1727968143349,6.229651,2325.6,2325.1,4.30079]
[1727968143350,1.929691,2325.6,2325.1,4.30079]
[1727968143525,0.7647,2325.6,2325.3,4.30034]
[1727968143728,4.29975,2325.8,2325.2,4.30069]
[1727968143932,5.10122,2325.9,2325.3,4.30038]
[1727968144164,4.809722,2325.8,2325.2,4.30069]
[1727968144368,4.30007,2325.6,2325.0,4.30098]
[1727968144686,4.30021,2325.5,2325.0,4.30098]
[1727968144853,4.30007,2325.6,2325.0,8.60196]
[1727968145056,4.30007,2325.6,2325.1,4.30077]
[1727968145361,4.30007,2325.6,2324.7,5.08997679]
[1727968145362,4.30071,2325.2,2324.7,4.30161]
[1727968145530,4.30071,2325.2,2324.6,5.06933]
[1727968145732,4.30053,2325.3,2324.8,4.30135]
[1727968145924,4.30089,2325.1,2324.6,5.06928]
[1727968146116,4.30089,2325.1,2324.6,9.37097]
[1727968146335,4.30089,2325.1,2324.6,5.06928]
[1727968146518,4.30089,2325.1,2324.6,4.30168]
[1727968146716,4.3019,2324.6,2324.0,0.8089]
[1727968146959,4.3019,2324.6,2324.1,4.30265]
[1727968146960,4.73209,2324.6,2324.1,4.30265]
[1727968147141,4.30201,2324.5,2324.1,4.30265]
[1727968147345,0.7792,2324.7,2324.0,0.8089]
[1727968147654,4.30153,2324.8,2324.4,4.30216]
[1727968147862,5.239722,2324.8,2324.4,4.30216]
[1727968148068,0.7792,2325.0,2324.6,4.30175]
[1727968148224,5.08039,2325.0,2324.4,8.60404]
[1727968148433,5.08039,2325.0,2324.5,4.30184]
[1727968148639,4.30153,2324.8,2324.3,8.6045]
[1727968148956,4.30148,2324.8,2323.6,0.7501]
[1727968149264,4.30281,2324.1,2323.6,0.7501]
[1727968149459,0.7785,2324.3,2323.4,4.30403]
[1727968149780,4.30358,2323.7,2323.2,5.05926]
[1727968149991,4.30358,2323.7,2322.2,5.46637474]
[1727968149992,5.07274,2323.6,2322.9,5.0598]
[1727968150271,5.07274,2323.6,2323.1,4.30455]
[1727968150272,0.769,2323.6,2323.1,4.30455]
[1727968150492,3.0,2323.9,2322.9,0.755]
[1727968150493,0.769,2323.9,2323.2,4.3044]
[1727968150633,0.769,2323.9,2322.9,5.05996]
[1727968150634,4.30332,2323.8,2322.9,0.755]
[1727968150833,4.810852,2323.7,2323.2,4.30434]
[1727968151034,5.07227,2323.9,2323.4,4.30394]
[1727968151471,5.07227,2323.9,2322.9,0.755]
[1727968151472,0.769,2323.9,2323.5,4.30384]
[1727968151673,4.30283,2324.1,2323.5,4.30384]
[1727968151867,3.7906,2324.2,2323.5,4.30384]
[1727968151868,4.30301,2324.0,2323.5,4.30384]
[1727968152069,5.09316,2324.2,2323.7,4.30335]
[1727968152270,5.9754993,2324.2,2323.7,4.30335]
[1727968152776,1.6729393,2324.2,2323.5,4.3037]
[1727968153076,1.6729393,2324.2,2323.1,0.7838]
[1727968153077,5.09316,2324.2,2323.1,0.7838]
[1727968153282,0.507998,2324.7,2322.8,3.0]
[1727968153283,4.30412,2323.4,2322.9,4.30483]
[1727968153750,4.30346,2323.8,2323.2,4.30429]
[1727968153953,4.30369,2323.6,2323.1,4.30457]
[1727968154275,0.7994,2323.9,2322.8,0.7838]
[1727968154276,4.30414,2323.4,2322.9,4.30485]
[1727968154578,4.30367,2323.6,2323.1,4.30444]
[1727968154877,0.7994,2323.9,2323.2,4.30439]
[1727968154878,4.3034,2323.8,2323.2,4.30439]
[1727968155076,0.7652,2324.6,2323.3,0.7884]
[1727968155282,4.30257,2324.2,2323.8,4.30328]
[1727968155597,4.30215,2324.5,2323.8,4.30319]
[1727968155735,4.30239,2324.3,2323.9,4.303]
[1727968155942,0.7652,2324.6,2323.4,0.55]
[1727968156144,4.30301,2324.0,2323.4,4.30387]
[1727968156381,4.30312,2323.9,2323.5,4.30383]
[1727968156754,4.30301,2324.0,2323.5,4.30383]
[1727968157401,4.30301,2324.0,2323.3,0.7884]
[1727968157402,4.30302,2324.0,2323.3,0.7884]
[1727968157693,0.8249,2324.1,2323.7,4.30347]
[1727968157694,4.30292,2324.1,2323.7,4.30347]
[1727968157847,4.302,2324.5,2323.3,0.7884]
[1727968157848,4.303,2324.0,2323.3,0.7884]
[1727968158198,4.30342,2323.8,2323.3,0.7884]
[1727968158497,4.30342,2323.8,2323.3,5.09251]
[1727968158790,0.8249,2323.9,2323.4,4.30395]
[1727968158992,0.8249,2324.2,2323.5,4.3038]
[1727968159193,4.30334,2323.8,2323.3,9.39652]
[1727968159488,4.30286,2324.1,2323.3,0.7884]
[1727968159785,4.30329,2323.9,2323.4,4.30401]
[1727968159996,4.30367,2323.6,2323.0,0.7876]
[1727968160298,0.8201,2323.6,2322.7,5.06443]
[1727968160458,0.8201,2323.6,2322.1,0.89981618]
[1727968160459,4.30504,2322.9,2322.5,4.30555]
[1727968160800,3.860994,2322.9,2321.8,5.1015]
[1727968160983,7.35,2323.7,2321.8,5.1015]
[1727968160984,4.30617,2322.3,2321.8,5.1015]
[1727968161500,4.30585,2322.5,2321.9,4.30663]
[1727968161788,4.30619,2322.3,2321.8,5.10149]
[1727968162090,8.61243,2322.3,2321.8,5.10149]
[1727968162299,4.30639,2322.2,2321.6,9.38968]
[1727968162597,4.30702,2321.8,2321.1,0.7752]
[1727968162895,4.30756,2321.5,2321.1,0.7752]
[1727968163187,0.807,2322.2,2321.1,0.7752]
[1727968163188,4.30694,2321.9,2321.1,0.7752]
[1727968163390,0.8974353,2322.1,2321.1,5.08338]
[1727968163695,0.807,2322.2,2321.1,5.08338]
[1727968163696,4.30703,2321.8,2321.2,4.3081]
[1727968163992,4.30687,2321.9,2321.1,0.7752]
[1727968164202,4.30699,2321.9,2321.2,4.30811]
[1727968164396,4.30701,2321.8,2321.3,4.30781]
[1727968164693,4.30719,2321.7,2321.2,4.30811]
[1727968164893,4.30751,2321.6,2321.1,5.08348]
[1727968165062,4.30758,2321.5,2321.1,0.7752]
[1727968165260,4.30758,2321.5,2320.8,4.30875]
[1727968165261,4.30785,2321.4,2320.9,4.30858]
[1727968165594,0.430758,2321.4,2320.8,0.8206]
[1727968165891,4.30794,2321.3,2320.9,4.30858]
[1727968166091,0.430758,2321.4,2320.8,0.8206]
[1727968166247,4.30734,2321.7,2320.8,0.8206]
[1727968166447,4.30734,2321.7,2321.0,4.30834]
[1727968166448,4.30721,2321.7,2321.0,4.30834]
[1727968166646,4.30747,2321.6,2321.0,4.30834]
[1727968166853,4.30721,2321.7,2321.2,4.30809]
[1727968167287,4.30764,2321.5,2320.8,0.8206]
[1727968167485,8.61529,2321.5,2321.0,4.30845]
[1727968167699,4.30764,2321.5,2321.0,4.30845]
[1727968167899,4.30727,2321.7,2321.2,4.308]
[1727968168200,0.8262,2322.0,2321.1,4.30816]
[1727968168201,4.30747,2321.6,2321.1,4.30816]
[1727968168353,4.30775,2321.4,2320.9,4.30858]
[1727968168775,5.11735,2321.4,2320.9,4.30858]
[1727968169116,5.629085,2321.4,2320.9,4.30858]
[1727968169277,5.629085,2321.4,2320.8,0.8206]
[1727968169278,1.321335,2321.4,2320.8,0.8206]
[1727968169466,4.30748,2321.6,2321.1,4.30814]
[1727968169666,4.30739,2321.6,2321.1,4.30821]
[1727968169967,4.30783,2321.4,2320.9,4.30865]
[1727968170185,4.30783,2321.4,2320.8,5.12934]
[1727968170186,4.30811,2321.2,2320.8,5.12934]
[1727968170388,4.3084,2321.1,2320.6,4.30911]
[1727968170665,4.3084,2321.1,2320.6,8.61824]
[1727968171075,8.61729,2321.0,2320.5,5.09408]
[1727968171395,0.7775,2321.1,2320.8,4.30876]
[1727968171595,4.30812,2321.2,2320.8,4.30876]
[1727968171910,4.30794,2321.3,2320.8,4.30876]
[1727968172116,5.3334239,2321.3,2320.8,4.30876]
[1727968172315,5.3334239,2321.3,2320.8,4.30885]
[1727968172477,5.08538,2321.4,2320.5,0.7847]
[1727968172671,4.30795,2321.3,2320.8,4.30874]
[1727968173170,4.30815,2321.2,2320.6,4.30909]
[1727968173519,0.7775,2321.4,2320.7,4.30891]
[1727968173808,5.13684,2321.7,2321.2,8.616]
[1727968174010,4.30748,2321.6,2321.2,4.30797]
[1727968174375,5.1367,2321.7,2320.8,4.30877]
[1727968174784,1.248678,2321.6,2320.9,4.30854]
[1727968174927,5.1367,2321.7,2321.2,4.30799]
[1727968175095,4.30774,2321.4,2321.0,4.30846]
[1727968175491,4.30812,2321.2,2320.7,9.39802]
[1727968175718,4.30777,2321.4,2321.0,4.3084]
[1727968175932,4.30771,2321.5,2320.8,4.30873]
[1727968176101,4.30806,2321.3,2320.8,4.30873]
[1727968176602,4.30879,2320.9,2320.4,5.11511]
[1727968176788,5.13289,2321.1,2320.6,4.30913]
[1727968176987,5.13289,2321.1,2320.5,4.30936]
[1727968177242,9.44128,2321.1,2320.6,4.3091]
[1727968177394,5.13289,2321.1,2320.6,4.3091]
[1727968177796,8.61717,2321.0,2320.5,4.30936]
[1727968177990,8.61717,2321.0,2320.4,0.8056]
[1727968177991,0.8266,2321.0,2320.0,0.778]
[1727968178224,8.13556,2320.8,2319.9,1.79135026]
[1727968178433,8.61908,2320.5,2320.0,4.31025]
[1727968178651,0.813556,2320.7,2319.9,1.79135026]
[1727968178849,0.8266,2320.8,2320.4,4.30944]
[1727968179052,5.13545,2320.8,2320.4,4.30944]
[1727968179755,5.13545,2320.8,2320.3,4.30975]
[1727968179756,9.44443,2320.8,2320.3,4.30975]
[1727968179958,5.13545,2320.8,2320.3,4.30975]
[1727968180108,5.13545,2320.8,2320.3,8.61936]
[1727968180317,4.30912,2320.7,2320.3,4.30967]
[1727968180961,4.30912,2320.7,2320.1,5.11713]
[1727968180962,4.30861,2321.0,2320.5,4.30927]
[1727968181125,0.7566,2321.1,2320.7,4.30894]
[1727968181311,7.35,2321.2,2320.5,4.30939]
[1727968181606,7.35,2321.2,2320.1,5.1172]
[1727968181607,4.30925,2320.6,2320.2,4.30988]
[1727968182110,4.3098,2320.3,2319.9,6.10179026]
[1727968182311,4.31001,2320.2,2319.9,1.79135026]
[1727968182757,4.3098,2320.3,2319.9,6.10187026]
[1727968182962,0.8037,2320.2,2319.9,1.79135026]
[1727968183317,5.11367,2320.2,2319.9,1.79135026]
[1727968183529,4.31034,2320.0,2319.9,1.79135026]
[1727968184148,5.1137,2320.2,2319.9,1.79135026]
[1727968184317,0.8037,2320.2,2319.9,1.79135026]
[1727968184519,4.31025,2320.1,2319.9,1.79135026]
[1727968184921,4.3097,2320.4,2319.9,6.10177026]
[1727968185121,4.31001,2320.2,2319.9,1.79135026]
[1727968185359,5.06658,2320.5,2319.9,1.79135026]
[1727968185360,4.30981,2320.3,2319.9,1.79135026]
[1727968185666,3.757,2320.5,2319.9,1.79135026]
[1727968185817,0.757,2320.5,2320.1,4.31005]
[1727968186040,7.30878,2320.9,2319.9,2.56725026]
[1727968186041,4.30911,2320.7,2320.3,4.30968]
[1727968186241,5.09257,2320.8,2320.3,4.30968]
[1727968186486,4.30913,2320.7,2320.2,4.30983]
[1727968186785,1.292857,2320.8,2320.1,4.30999]
[1727968186967,0.7564,2321.1,2320.7,4.30889]
[1727968187303,4.30831,2321.1,2320.7,4.30889]
[1727968187488,4.30896,2320.8,2320.3,4.30965]
[1727968187785,4.30938,2320.6,2320.1,4.31003]
[1727968187964,4.30872,2320.9,2320.3,4.30977]
[1727968188181,4.30895,2320.8,2320.3,4.30977]
[1727968188355,4.30872,2320.9,2320.4,4.30946]
[1727968188556,4.30907,2320.7,2320.2,4.30981]
[1727968188881,4.30907,2320.7,2320.3,4.30976]
[1727968189543,0.8028,2321.0,2320.5,5.13489]
[1727968189544,4.30863,2321.0,2320.5,5.13489]
[1727968189777,4.30863,2321.0,2320.5,0.8255]
[1727968190074,0.7644,2321.3,2320.5,0.8255]
[1727968190075,4.30879,2320.9,2320.5,0.8255]
[1727968190277,8.61758,2320.9,2320.5,0.8255]
[1727968190515,4.30849,2321.0,2320.6,4.30922]
[1727968190637,4.30867,2320.9,2320.5,5.13489]
[1727968190840,4.30849,2321.0,2320.6,4.30912]
[1727968190841,4.30853,2321.0,2320.6,4.30912]
[1727968191640,8.61692,2321.1,2320.6,4.30912]
[1727968191901,8.61692,2321.1,2320.2,4.30994]
[1727968191902,0.8252,2320.8,2320.3,4.30977]
[1727968192045,4.30834,2321.1,2320.7,4.30898]
[1727968192046,5.13367,2321.1,2320.7,4.30898]
[1727968192245,4.30802,2321.3,2320.8,4.30868]
[1727968192846,0.7849,2321.9,2321.0,0.8045]
[1727968193041,4.30702,2321.8,2321.0,0.8045]
[1727968193241,7.35,2322.3,2321.6,4.30719]
[1727968193459,4.30494,2323.0,2321.6,5.11659]
[1727968193460,4.30646,2322.1,2321.6,5.11659]
[1727968194007,4.30708,2321.8,2321.3,5.08021]
[1727968194193,4.30708,2321.8,2321.3,5.08006]
[1727968194512,4.30725,2321.7,2321.3,0.7723]
[1727968194711,4.30739,2321.6,2321.3,0.7723]
[1727968195473,4.737958,2321.7,2321.0,5.10553]
[1727968195474,4.30766,2321.5,2321.0,5.10553]
[1727968195783,4.30702,2321.8,2321.3,4.30781]
[1727968196023,0.7892,2322.0,2321.2,4.30798]
[1727968196024,4.30634,2322.2,2321.8,4.30698]
[1727968196495,4.30634,2322.2,2321.7,4.30716]
[1727968196870,4.30571,2322.5,2322.1,4.30643]
[1727968197094,4.30568,2322.6,2322.2,4.30623]
[1727968197277,4.30568,2322.6,2322.1,4.30642]
[1727968197494,4.30568,2322.6,2322.0,4.3066]
[1727968197495,4.30589,2322.4,2322.0,4.3066]
[1727968197805,4.30627,2322.2,2321.9,0.7977]
[1727968198010,4.3062,2322.3,2321.9,4.3068]
[1727968198180,5.97917,2322.6,2321.7,4.30717]
[1727968198380,5.97917,2322.6,2321.6,0.7855]
[1727968198381,4.30606,2322.4,2321.8,4.30689]
[1727968198713,4.3062,2322.3,2321.9,4.3068]
[1727968198913,4.30606,2322.4,2321.9,4.3068]
[1727968199209,4.3061,2322.3,2321.9,4.3068]
[1727968199570,4.981097,2322.5,2321.9,4.3068]
[1727968199904,4.3061,2322.3,2321.9,4.3068]
[1727968200118,4.30626,2322.2,2321.8,4.307]
[1727968200283,4.30648,2322.1,2321.6,5.09276]
[1727968200611,4.30689,2321.9,2321.1,4.30818]
[1727968200817,4.30794,2321.3,2320.9,4.30858]
[1727968201003,4.30794,2321.3,2320.8,4.30884]
[1727968201585,3.0,2321.5,2321.0,4.30846]
[1727968201810,4.981087,2322.5,2321.7,4.3071]
[1727968201811,5.12507,2322.2,2321.7,4.3071]
[1727968202010,1.494057,2322.5,2322.2,4.30616]
[1727968202213,0.7738,2322.8,2322.2,4.30615]
[1727968202508,0.7738,2322.8,2322.0,5.10047]
[1727968202509,4.30592,2322.4,2322.0,5.10047]
[1727968202709,5.167182,2322.4,2322.0,0.794]
[1727968202919,4.30559,2322.6,2322.0,0.794]
[1727968203078,4.30538,2322.7,2322.0,0.794]
[1727968203274,4.30538,2322.7,2322.2,4.30616]
[1727968203505,4.30556,2322.6,2322.1,4.30634]
[1727968203706,4.30556,2322.6,2322.1,8.61268]
[1727968203979,4.30538,2322.7,2322.2,4.30613]
[1727968204181,4.30552,2322.6,2322.1,4.30634]
[1727968204515,4.30597,2322.4,2321.1,0.8242]
[1727968204686,4.30626,2322.2,2321.7,5.13125]
[1727968204885,4.30609,2322.3,2321.8,4.30697]
[1727968205086,4.30626,2322.2,2321.7,5.13125]
[1727968205294,4.30626,2322.2,2321.7,9.43833]
[1727968205481,4.30656,2322.1,2321.6,4.30731]
[1727968205682,4.30633,2322.2,2321.7,4.30707]
[1727968206104,8.61269,2322.2,2321.7,4.30707]
[1727968206415,1.3245396,2322.2,2321.6,4.30729]
[1727968206619,5.938796,2322.3,2321.8,4.30698]
[1727968206915,4.30626,2322.2,2321.9,0.7501]
[1727968207090,4.30626,2322.2,2321.8,4.30686]
[1727968207285,4.30652,2322.1,2321.6,0.7501]
[1727968207487,0.507918,2322.7,2321.3,3.0]
[1727968207488,4.30689,2321.9,2321.4,4.30757]
[1727968208018,4.30708,2321.8,2321.4,4.30757]
[1727968208219,4.30731,2321.7,2321.2,5.05805]
[1727968208427,3.941384,2321.9,2321.2,0.7501]
[1727968208632,4.30653,2322.1,2321.5,4.3075]
[1727968208921,8.61309,2322.1,2321.6,4.30733]
[1727968209093,4.30628,2322.2,2321.7,4.30704]
[1727968209291,5.07544,2322.3,2321.7,4.30704]
[1727968209292,5.88293,2322.3,2321.7,4.30704]
[1727968209517,4.30582,2322.5,2322.0,4.30645]
[1727968209732,5.0987,2322.6,2322.2,4.30621]
[1727968209879,5.0987,2322.6,2322.1,0.7617]
[1727968209880,4.30574,2322.5,2322.1,0.7617]
[1727968210079,0.7931,2322.3,2321.7,4.30708]
[1727968210280,4.30678,2322.0,2321.2,5.09004]
[1727968210520,4.30793,2321.3,2320.9,0.782]
[1727968210686,4.30783,2321.4,2320.9,5.09058]
[1727968210879,4.30807,2321.3,2320.9,0.782]
[1727968211081,4.819303,2321.4,2320.7,4.30888]
[1727968211334,4.30821,2321.2,2320.6,0.7679]
[1727968211619,4.819333,2321.4,2320.9,4.30856]
[1727968211827,4.30775,2321.4,2321.0,4.30845]
[1727968212142,4.30786,2321.4,2320.6,0.7679]
[1727968212429,0.8066,2321.6,2321.2,4.30795]
[1727968212719,0.8066,2321.6,2320.8,4.30868]
[1727968212720,3.0,2321.8,2321.4,4.30764]
[1727968212905,3.0,2321.8,2321.0,5.09542]
[1727968212906,4.30737,2321.6,2321.1,4.30818]
[1727968213104,4.30802,2321.3,2320.8,4.30878]
[1727968213320,0.89564505,2321.8,2320.7,5.09593]
[1727968213321,4.30745,2321.6,2321.1,4.3082]
[1727968213524,4.64949046,2321.9,2321.1,0.43082]
[1727968213820,0.88319046,2321.9,2321.4,4.3076]
[1727968213985,4.30726,2321.7,2321.2,5.0684]
[1727968214328,0.88319046,2321.9,2321.4,4.30759]
[1727968214618,0.88319046,2321.9,2321.5,4.3075]
[1727968215122,0.88319046,2321.9,2321.8,4.307]
[1727968215425,0.88319046,2321.9,2321.8,6.1132]
[1727968215727,0.88319046,2321.9,2321.8,9.1132]
[1727968215895,0.88319046,2321.9,2321.8,5.5632]
[1727968216114,0.88319046,2321.9,2321.7,4.30714]
[1727968216442,0.88319046,2321.9,2321.5,4.30741]
[1727968216942,0.88319046,2321.9,2321.5,8.61487]
[1727968217114,0.88319046,2321.9,2321.5,4.30742]
[1727968217442,5.19015046,2321.9,2321.3,4.30776]